[Event "*** Titled Tuesday Blitz"]
[Site "Chess.com"]
[Date "2020.11.03"]
[Round "10"]
[White "lelajavakhishvili"]
[Black "BlixLT"]
[Result "1-0"]
[WhiteElo "2524"]
[BlackElo "2392"]
[TimeControl "180+1"]
[EndTime "11:57:45 PST"]
[Termination "lelajavakhishvili won by resignation"]

1. d4 {[%clk 0:03:00.9]} 1... d5 {[%clk 0:02:59.8]} 2. c4 {[%clk 0:03:00.9]}
2... Nc6 {[%clk 0:03:00]} 3. cxd5 {[%clk 0:02:54]} 3... Qxd5 {[%clk 0:02:59.3]}
4. e3 {[%clk 0:02:54.5]} 4... e5 {[%clk 0:02:59.2]} 5. Nc3 {[%clk 0:02:54.9]}
5... Bb4 {[%clk 0:02:59.4]} 6. Bd2 {[%clk 0:02:55.1]} 6... Bxc3 {[%clk
0:02:59.1]} 7. Bxc3 {[%clk 0:02:54.8]} 7... exd4 {[%clk 0:02:59.4]} 8. Ne2
{[%clk 0:02:54.8]} 8... Nf6 {[%clk 0:02:59.7]} 9. Nxd4 {[%clk 0:02:54]} 9... Bg4
{[%clk 0:02:26.6]} 10. Qb3 {[%clk 0:02:51.8]} 10... Nxd4 {[%clk 0:01:52.5]} 11.
Bxd4 {[%clk 0:02:44.5]} 11... Qxb3 {[%clk 0:01:51.9]} 12. axb3 {[%clk
0:02:44.2]} 12... a6 {[%clk 0:01:38.6]} 13. b4 {[%clk 0:02:36]} 13... O-O-O
{[%clk 0:01:14.9]} 14. b5 {[%clk 0:02:30.8]} 14... Rxd4 {[%clk 0:00:59]} 15.
exd4 {[%clk 0:02:28.2]} 15... Re8+ {[%clk 0:00:58.6]} 16. Kd2 {[%clk 0:02:24.6]}
16... Ne4+ {[%clk 0:00:58.8]} 17. Kc2 {[%clk 0:02:21.2]} 17... Nxf2 {[%clk
0:00:42.8]} 18. bxa6 {[%clk 0:02:20.9]} 18... bxa6 {[%clk 0:00:42.7]} 19. Bxa6+
{[%clk 0:02:20.2]} 19... Kd7 {[%clk 0:00:43]} 20. Rhf1 {[%clk 0:02:16.8]} 20...
Ne4 {[%clk 0:00:13.9]} 21. Rxf7+ {[%clk 0:02:12.6]} 21... Kd6 {[%clk 0:00:14.4]}
22. Rxg7 {[%clk 0:02:09.4]} 22... Bf5 {[%clk 0:00:13.4]} 23. Bd3 {[%clk
0:02:09.3]} 23... c5 {[%clk 0:00:07.2]} 24. dxc5+ {[%clk 0:02:06.9]} 24... Kd5
{[%clk 0:00:06.4]} 25. Ra5 {[%clk 0:01:59.6]} 25... Rc8 {[%clk 0:00:05.3]} 26.
c6+ {[%clk 0:01:54.7]} 26... Ke6 {[%clk 0:00:05.7]} 27. Rxf5 {[%clk 0:01:53.3]}
27... Kxf5 {[%clk 0:00:06.2]} 28. Bxe4+ {[%clk 0:01:49.5]} 28... Kxe4 {[%clk
0:00:06]} 29. c7 {[%clk 0:01:50]} 1-0

[Event "*** Titled Tuesday Blitz"]
[Site "Chess.com"]
[Date "2020.11.03"]
[Round "10"]
[White "kflorian98"]
[Black "Mikhail_Golubev"]
[Result "0-1"]
[WhiteElo "2743"]
[BlackElo "2583"]
[TimeControl "180+1"]
[EndTime "11:57:47 PST"]
[Termination "Mikhail_Golubev won by checkmate"]

1. e4 {[%clk 0:03:00.9]} 1... c5 {[%clk 0:02:59.4]} 2. Nf3 {[%clk 0:02:59.9]}
2... d6 {[%clk 0:02:59.6]} 3. d4 {[%clk 0:02:59.6]} 3... Nf6 {[%clk 0:02:59.1]}
4. Nbd2 {[%clk 0:02:58.7]} 4... cxd4 {[%clk 0:02:56.9]} 5. Nxd4 {[%clk
0:02:59.6]} 5... g6 {[%clk 0:02:56.8]} 6. Bd3 {[%clk 0:02:59.3]} 6... Bg7 {[%clk
0:02:57]} 7. N2f3 {[%clk 0:02:59.7]} 7... O-O {[%clk 0:02:55.8]} 8. O-O {[%clk
0:02:59.9]} 8... Nbd7 {[%clk 0:02:53]} 9. Re1 {[%clk 0:02:58.1]} 9... Qc7 {[%clk
0:02:50.5]} 10. c3 {[%clk 0:02:57.2]} 10... a6 {[%clk 0:02:50.4]} 11. Bg5 {[%clk
0:02:54.3]} 11... b6 {[%clk 0:02:47.7]} 12. Qd2 {[%clk 0:02:52.4]} 12... Bb7
{[%clk 0:02:47.6]} 13. Bc2 {[%clk 0:02:49]} 13... Nc5 {[%clk 0:02:44.5]} 14. e5
{[%clk 0:02:30.8]} 14... dxe5 {[%clk 0:02:37.8]} 15. Nxe5 {[%clk 0:02:31.7]}
15... Nfe4 {[%clk 0:02:33]} 16. Bxe4 {[%clk 0:02:28.9]} 16... Nxe4 {[%clk
0:02:32.2]} 17. Rxe4 {[%clk 0:02:24.2]} 17... Bxe4 {[%clk 0:02:31.7]} 18. Ng4
{[%clk 0:02:24.6]} 18... h5 {[%clk 0:02:21.6]} 19. Qe2 {[%clk 0:02:19.7]} 19...
hxg4 {[%clk 0:02:10.5]} 20. Qxe4 {[%clk 0:02:18.5]} 20... e5 {[%clk 0:02:10.3]}
21. Nc2 {[%clk 0:02:14.9]} 21... f5 {[%clk 0:02:06.6]} 22. Qe2 {[%clk 0:02:11]}
22... b5 {[%clk 0:01:58.1]} 23. a4 {[%clk 0:02:09.8]} 23... Qc4 {[%clk
0:01:56.2]} 24. Qd1 {[%clk 0:02:04.3]} 24... bxa4 {[%clk 0:01:47.7]} 25. Ne3
{[%clk 0:02:03.8]} 25... Qb3 {[%clk 0:01:47.6]} 26. Qd6 {[%clk 0:02:01.1]} 26...
Qf7 {[%clk 0:01:23.2]} 27. Rxa4 {[%clk 0:01:58.6]} 27... Bf6 {[%clk 0:01:05.9]}
28. Bxf6 {[%clk 0:01:52.6]} 28... Qxf6 {[%clk 0:01:06]} 29. Qd5+ {[%clk
0:01:53.2]} 29... Kg7 {[%clk 0:01:05]} 30. h3 {[%clk 0:01:53.6]} 30... gxh3
{[%clk 0:01:00.9]} 31. gxh3 {[%clk 0:01:54.5]} 31... Rad8 {[%clk 0:00:54.8]} 32.
Qb7+ {[%clk 0:01:53]} 32... Rf7 {[%clk 0:00:54.7]} 33. Qxa6 {[%clk 0:01:52.4]}
33... Qg5+ {[%clk 0:00:54.7]} 34. Kf1 {[%clk 0:01:51.6]} 34... Qh5 {[%clk
0:00:47]} 35. Qe6 {[%clk 0:01:44.3]} 35... Qxh3+ {[%clk 0:00:38.4]} 36. Ke2
{[%clk 0:01:43.8]} 36... Qh5+ {[%clk 0:00:36.8]} 37. Ke1 {[%clk 0:01:42.2]}
37... f4 {[%clk 0:00:35.8]} 38. Ng4 {[%clk 0:01:38.9]} 38... Qh1+ {[%clk
0:00:35.6]} 39. Ke2 {[%clk 0:01:38.8]} 39... Qd1# {[%clk 0:00:35.5]} 0-1

[Event "*** Titled Tuesday Blitz"]
[Site "Chess.com"]
[Date "2020.11.03"]
[Round "10"]
[White "ChSalas"]
[Black "Loy_Konstantin"]
[Result "1-0"]
[WhiteElo "2506"]
[BlackElo "2378"]
[TimeControl "180+1"]
[EndTime "11:57:49 PST"]
[Termination "ChSalas won by checkmate"]

1. d4 {[%clk 0:03:00.9]} 1... Nf6 {[%clk 0:02:59.1]} 2. Nf3 {[%clk 0:03:00.7]}
2... g6 {[%clk 0:02:58.3]} 3. Bg5 {[%clk 0:03:00.4]} 3... Bg7 {[%clk 0:02:58.2]}
4. Nbd2 {[%clk 0:02:59]} 4... c5 {[%clk 0:02:56.2]} 5. e3 {[%clk 0:02:58.7]}
5... cxd4 {[%clk 0:02:56.1]} 6. exd4 {[%clk 0:02:59.6]} 6... O-O {[%clk
0:02:56.3]} 7. c3 {[%clk 0:02:59.5]} 7... d6 {[%clk 0:02:56.6]} 8. Be2 {[%clk
0:02:57.1]} 8... Nc6 {[%clk 0:02:57.1]} 9. O-O {[%clk 0:02:56.7]} 9... e5 {[%clk
0:02:56.2]} 10. Ne4 {[%clk 0:02:42.6]} 10... Bf5 {[%clk 0:02:43.6]} 11. dxe5
{[%clk 0:02:18.3]} 11... Bxe4 {[%clk 0:02:41.9]} 12. exf6 {[%clk 0:02:15.9]}
12... Bxf6 {[%clk 0:02:42.2]} 13. Bh6 {[%clk 0:01:55.6]} 13... Re8 {[%clk
0:02:39]} 14. Re1 {[%clk 0:01:55.3]} 14... d5 {[%clk 0:02:36.1]} 15. Bb5 {[%clk
0:01:50.7]} 15... Qb6 {[%clk 0:02:32.5]} 16. Qb3 {[%clk 0:01:29.2]} 16... Bxf3
{[%clk 0:02:20.4]} 17. gxf3 {[%clk 0:01:26.9]} 17... d4 {[%clk 0:02:06.1]} 18.
Qxf7+ {[%clk 0:00:46.1]} 18... Kxf7 {[%clk 0:01:58.8]} 19. Bc4+ {[%clk
0:00:46.5]} 19... Re6 {[%clk 0:01:52.7]} 20. Rxe6 {[%clk 0:00:46.8]} 20... Qxb2
{[%clk 0:00:50.7]} 21. Re5# {[%clk 0:00:37.2]} 1-0

[Event "*** Titled Tuesday Blitz"]
[Site "Chess.com"]
[Date "2020.11.03"]
[Round "10"]
[White "BJthechessgod"]
[Black "Anna_ChessMate"]
[Result "0-1"]
[WhiteElo "2320"]
[BlackElo "2539"]
[TimeControl "180+1"]
[EndTime "11:57:54 PST"]
[Termination "Anna_ChessMate won by checkmate"]

1. e4 {[%clk 0:00:37.3]} 1... c6 {[%clk 0:02:58.4]} 2. d4 {[%clk 0:00:36.5]}
2... d5 {[%clk 0:02:58.4]} 3. Nc3 {[%clk 0:00:37.1]} 3... dxe4 {[%clk
0:02:58.1]} 4. Nxe4 {[%clk 0:00:38]} 4... Bf5 {[%clk 0:02:57.7]} 5. Ng3 {[%clk
0:00:38.1]} 5... Bg6 {[%clk 0:02:57.8]} 6. h4 {[%clk 0:00:39]} 6... h6 {[%clk
0:02:58.1]} 7. h5 {[%clk 0:00:39.7]} 7... Bh7 {[%clk 0:02:58.2]} 8. Nf3 {[%clk
0:00:39.6]} 8... e6 {[%clk 0:02:58.1]} 9. Bd3 {[%clk 0:00:39.7]} 9... Bxd3
{[%clk 0:02:58.5]} 10. Qxd3 {[%clk 0:00:40.4]} 10... Nf6 {[%clk 0:02:58.8]} 11.
Bf4 {[%clk 0:00:40.8]} 11... Bd6 {[%clk 0:02:56.8]} 12. Bxd6 {[%clk 0:00:40.8]}
12... Qxd6 {[%clk 0:02:56.7]} 13. c3 {[%clk 0:00:41]} 13... Nbd7 {[%clk
0:02:56]} 14. O-O-O {[%clk 0:00:39.9]} 14... O-O-O {[%clk 0:02:54.2]} 15. Kb1
{[%clk 0:00:40.3]} 15... Kb8 {[%clk 0:02:51.2]} 16. Ne4 {[%clk 0:00:40.7]} 16...
Qc7 {[%clk 0:02:48.5]} 17. Nxf6 {[%clk 0:00:39.1]} 17... Nxf6 {[%clk 0:02:49.4]}
18. Ne5 {[%clk 0:00:37.9]} 18... Rd6 {[%clk 0:02:23.1]} 19. Qg3 {[%clk 0:00:37]}
19... Rg8 {[%clk 0:02:16.2]} 20. c4 {[%clk 0:00:35]} 20... Ne4 {[%clk
0:02:02.9]} 21. Qf3 {[%clk 0:00:28.9]} 21... f5 {[%clk 0:01:56.6]} 22. g4 {[%clk
0:00:27]} 22... Rgd8 {[%clk 0:01:35.8]} 23. gxf5 {[%clk 0:00:23.1]} 23... Rxd4
{[%clk 0:01:30.8]} 24. Rxd4 {[%clk 0:00:18.8]} 24... Rxd4 {[%clk 0:01:31.7]} 25.
Ng6 {[%clk 0:00:14.8]} 25... Nd2+ {[%clk 0:01:31.1]} 26. Kc2 {[%clk 0:00:14.7]}
26... Nxf3 {[%clk 0:01:32]} 27. fxe6 {[%clk 0:00:15.3]} 27... Rd2+ {[%clk
0:01:30.7]} 28. Kc1 {[%clk 0:00:15.3]} 28... Qb6 {[%clk 0:01:30.3]} 29. b3
{[%clk 0:00:13.8]} 29... Qd4 {[%clk 0:01:30.7]} 30. e7 {[%clk 0:00:13.2]} 30...
Qb2# {[%clk 0:01:31]} 0-1

[Event "*** Titled Tuesday Blitz"]
[Site "Chess.com"]
[Date "2020.11.03"]
[Round "10"]
[White "Shuvalov"]
[Black "Ashedu66"]
[Result "1-0"]
[WhiteElo "2414"]
[BlackElo "2233"]
[TimeControl "180+1"]
[EndTime "11:57:55 PST"]
[Termination "Shuvalov won by resignation"]

1. e4 {[%clk 0:02:55.8]} 1... e5 {[%clk 0:02:59.2]} 2. Nf3 {[%clk 0:02:55.7]}
2... Nc6 {[%clk 0:02:59.3]} 3. Bb5 {[%clk 0:02:55.7]} 3... Nge7 {[%clk
0:02:58.3]} 4. c3 {[%clk 0:02:54.1]} 4... g6 {[%clk 0:02:58]} 5. d4 {[%clk
0:02:52.5]} 5... exd4 {[%clk 0:02:57.7]} 6. cxd4 {[%clk 0:02:52.1]} 6... d5
{[%clk 0:02:58]} 7. exd5 {[%clk 0:02:49.1]} 7... Nxd5 {[%clk 0:02:58.1]} 8. O-O
{[%clk 0:02:47.6]} 8... Bg7 {[%clk 0:02:58]} 9. Re1+ {[%clk 0:02:46.4]} 9... Be6
{[%clk 0:02:57.9]} 10. Ng5 {[%clk 0:02:32.5]} 10... O-O {[%clk 0:02:54.5]} 11.
Bxc6 {[%clk 0:02:30.8]} 11... bxc6 {[%clk 0:02:53.6]} 12. Rxe6 {[%clk
0:02:26.8]} 12... fxe6 {[%clk 0:02:52.3]} 13. Nxe6 {[%clk 0:02:27]} 13... Qf6
{[%clk 0:02:33.8]} 14. Nxf8 {[%clk 0:02:26.5]} 14... Rxf8 {[%clk 0:02:32.8]} 15.
Qe2 {[%clk 0:02:04.7]} 15... Qxd4 {[%clk 0:02:27.4]} 16. Nc3 {[%clk 0:02:00.3]}
16... Nxc3 {[%clk 0:02:00.3]} 17. bxc3 {[%clk 0:02:01.2]} 17... Qxc3 {[%clk
0:01:57.7]} 18. Rb1 {[%clk 0:02:00.9]} 18... Bd4 {[%clk 0:01:34.3]} 19. Bb2
{[%clk 0:01:37.1]} 19... Rxf2 {[%clk 0:01:04.9]} 20. Bxc3 {[%clk 0:01:30]} 20...
Rxe2+ {[%clk 0:01:04.4]} 21. Bxd4 {[%clk 0:01:29.1]} 21... Rxa2 {[%clk
0:01:04.4]} 22. Rb8+ {[%clk 0:01:24.2]} 22... Kf7 {[%clk 0:01:04.2]} 23. Rb7
{[%clk 0:01:24.3]} 23... Ke6 {[%clk 0:01:02.7]} 24. Rxa7 {[%clk 0:01:22.3]}
24... Rd2 {[%clk 0:00:54.8]} 25. Be3 {[%clk 0:01:20.1]} 25... Rd1+ {[%clk
0:00:53.3]} 26. Kf2 {[%clk 0:01:20]} 26... Rd7 {[%clk 0:00:50.2]} 27. Bf4 {[%clk
0:01:17.2]} 27... Rf7 {[%clk 0:00:47.1]} 28. Kg3 {[%clk 0:01:16.5]} 28... Kd5
{[%clk 0:00:38]} 29. Rxc7 {[%clk 0:01:09.8]} 1-0

[Event "*** Titled Tuesday Blitz"]
[Site "Chess.com"]
[Date "2020.11.03"]
[Round "10"]
[White "Crazy_girl99"]
[Black "Nachsueb"]
[Result "1-0"]
[WhiteElo "2535"]
[BlackElo "2170"]
[TimeControl "180+1"]
[EndTime "11:57:58 PST"]
[Termination "Crazy_girl99 won by resignation"]

1. e4 {[%clk 0:03:00.9]} 1... e6 {[%clk 0:03:00.2]} 2. d4 {[%clk 0:03:00.5]}
2... d5 {[%clk 0:03:00.5]} 3. e5 {[%clk 0:03:01]} 3... c5 {[%clk 0:03:00.5]} 4.
c3 {[%clk 0:03:01.6]} 4... Bd7 {[%clk 0:02:59.8]} 5. Nf3 {[%clk 0:03:01.5]} 5...
Nc6 {[%clk 0:02:56.7]} 6. Be2 {[%clk 0:02:58.2]} 6... Qb6 {[%clk 0:02:55.7]} 7.
O-O {[%clk 0:02:56.9]} 7... cxd4 {[%clk 0:02:54.2]} 8. cxd4 {[%clk 0:02:57.8]}
8... Nge7 {[%clk 0:02:51.4]} 9. Nc3 {[%clk 0:02:55.2]} 9... Nf5 {[%clk
0:02:48.2]} 10. Na4 {[%clk 0:02:53.1]} 10... Qd8 {[%clk 0:02:36.9]} 11. Bg5
{[%clk 0:02:45.8]} 11... f6 {[%clk 0:02:27.4]} 12. exf6 {[%clk 0:02:41.2]} 12...
gxf6 {[%clk 0:02:28]} 13. Bf4 {[%clk 0:02:39.8]} 13... Bg7 {[%clk 0:02:22.3]}
14. Nc5 {[%clk 0:02:38]} 14... b6 {[%clk 0:02:04.3]} 15. Nxd7 {[%clk 0:02:36]}
15... Qxd7 {[%clk 0:02:03.8]} 16. Rc1 {[%clk 0:02:36.4]} 16... O-O {[%clk
0:01:55.9]} 17. Bb5 {[%clk 0:02:35.1]} 17... Rac8 {[%clk 0:01:55.1]} 18. Qa4
{[%clk 0:02:35.4]} 18... Nfe7 {[%clk 0:01:50.7]} 19. Rc2 {[%clk 0:02:31]} 19...
Qb7 {[%clk 0:01:47.1]} 20. Ba6 {[%clk 0:02:15.9]} 20... Qa8 {[%clk 0:01:31.5]}
21. Bxc8 {[%clk 0:02:14.6]} 21... Rxc8 {[%clk 0:01:30.5]} 22. Rfc1 {[%clk
0:02:15.2]} 22... Qb7 {[%clk 0:01:08.3]} 23. Bd6 {[%clk 0:01:55]} 23... b5
{[%clk 0:01:08]} 24. Qa3 {[%clk 0:01:55.4]} 24... Nf5 {[%clk 0:00:57]} 25. g4
{[%clk 0:01:37.9]} 25... Nfe7 {[%clk 0:00:31.2]} 26. Bxe7 {[%clk 0:01:35.7]}
26... Nxe7 {[%clk 0:00:32.1]} 27. Qd6 {[%clk 0:01:29.6]} 27... Bf8 {[%clk
0:00:17.2]} 28. Qxe6+ {[%clk 0:01:27.8]} 28... Kg7 {[%clk 0:00:17.6]} 29. Rxc8
{[%clk 0:01:28.4]} 1-0

[Event "*** Titled Tuesday Blitz"]
[Site "Chess.com"]
[Date "2020.11.03"]
[Round "10"]
[White "Azoulas1"]
[Black "Pertinhez76"]
[Result "1-0"]
[WhiteElo "2057"]
[BlackElo "2122"]
[TimeControl "180+1"]
[EndTime "11:58:01 PST"]
[Termination "Azoulas1 won by resignation"]

1. c4 {[%clk 0:02:40.5]} 1... e5 {[%clk 0:02:57.5]} 2. g3 {[%clk 0:02:38.5]}
2... Nf6 {[%clk 0:02:57.8]} 3. Bg2 {[%clk 0:02:36.8]} 3... d5 {[%clk 0:02:58.2]}
4. cxd5 {[%clk 0:02:34.8]} 4... Nxd5 {[%clk 0:02:58.8]} 5. Nc3 {[%clk 0:02:35]}
5... Nb6 {[%clk 0:02:57.9]} 6. Nf3 {[%clk 0:02:34.3]} 6... Nc6 {[%clk 0:02:57]}
7. d3 {[%clk 0:02:34.1]} 7... Be7 {[%clk 0:02:57.3]} 8. O-O {[%clk 0:02:32.9]}
8... Be6 {[%clk 0:02:57.2]} 9. a4 {[%clk 0:02:31.8]} 9... a6 {[%clk 0:02:53.5]}
10. Be3 {[%clk 0:02:31.2]} 10... O-O {[%clk 0:02:52.5]} 11. Rc1 {[%clk
0:02:29.7]} 11... f6 {[%clk 0:02:48.7]} 12. Ne4 {[%clk 0:02:29]} 12... Nd4
{[%clk 0:02:47.1]} 13. Nxd4 {[%clk 0:02:24.5]} 13... exd4 {[%clk 0:02:46.5]} 14.
Bf4 {[%clk 0:02:23.6]} 14... Nd5 {[%clk 0:02:46.7]} 15. Bd2 {[%clk 0:02:23]}
15... a5 {[%clk 0:02:40.2]} 16. Nc5 {[%clk 0:02:21.9]} 16... Bc8 {[%clk
0:02:31.1]} 17. Qb3 {[%clk 0:02:19.1]} 17... c6 {[%clk 0:02:31.5]} 18. Nxb7
{[%clk 0:02:13.8]} 18... Qd7 {[%clk 0:02:23]} 19. Nc5 {[%clk 0:02:12.3]} 19...
Qd8 {[%clk 0:02:16.4]} 20. Ne4 {[%clk 0:02:08.7]} 20... Kh8 {[%clk 0:02:12.4]}
21. Rxc6 {[%clk 0:02:06.2]} 21... Rb8 {[%clk 0:02:07.9]} 22. Qxb8 {[%clk
0:02:03]} 22... Qd7 {[%clk 0:02:02.1]} 23. Rfc1 {[%clk 0:01:52.4]} 23... Bb7
{[%clk 0:02:00.5]} 24. Rc7 {[%clk 0:01:32.9]} 24... Nxc7 {[%clk 0:01:41.6]} 25.
Qxc7 {[%clk 0:01:32.1]} 25... Qd5 {[%clk 0:01:34.4]} 26. Qxe7 {[%clk 0:01:29.4]}
26... Rg8 {[%clk 0:01:32.2]} 27. Rc5 {[%clk 0:01:26.1]} 27... Qb3 {[%clk
0:01:26.8]} 28. Nd6 {[%clk 0:01:14.4]} 28... Qd1+ {[%clk 0:01:23.5]} 29. Bf1
{[%clk 0:01:14]} 29... h5 {[%clk 0:01:05.8]} 30. Qxb7 {[%clk 0:01:07.9]} 30...
g6 {[%clk 0:01:01.3]} 31. Nf7+ {[%clk 0:01:05.6]} 31... Kg7 {[%clk 0:01:01.3]}
32. Ng5+ {[%clk 0:01:04.6]} 1-0

[Event "*** Titled Tuesday Blitz"]
[Site "Chess.com"]
[Date "2020.11.03"]
[Round "10"]
[White "Evachess2006"]
[Black "Ariadna_Atreides"]
[Result "0-1"]
[WhiteElo "1632"]
[BlackElo "2089"]
[TimeControl "180+1"]
[EndTime "11:58:08 PST"]
[Termination "Ariadna_Atreides won by resignation"]

1. e4 {[%clk 0:02:57.2]} 1... c5 {[%clk 0:02:11]} 2. c3 {[%clk 0:02:40]} 2... d5
{[%clk 0:02:03.5]} 3. exd5 {[%clk 0:02:32.4]} 3... Qxd5 {[%clk 0:02:04.4]} 4. d4
{[%clk 0:02:33]} 4... Nf6 {[%clk 0:01:56.6]} 5. Nf3 {[%clk 0:02:31.3]} 5... Nc6
{[%clk 0:01:56]} 6. Bb5 {[%clk 0:02:22.7]} 6... cxd4 {[%clk 0:01:45.1]} 7. Bxc6+
{[%clk 0:01:59.1]} 7... Qxc6 {[%clk 0:01:43.5]} 8. cxd4 {[%clk 0:01:56.2]} 8...
Bg4 {[%clk 0:01:40]} 9. Nc3 {[%clk 0:01:43.6]} 9... Bxf3 {[%clk 0:01:38]} 10.
Qxf3 {[%clk 0:01:39.9]} 10... Qxf3 {[%clk 0:01:36.5]} 11. gxf3 {[%clk 0:01:40]}
11... e6 {[%clk 0:01:33.1]} 12. Bg5 {[%clk 0:01:17.5]} 12... Bb4 {[%clk
0:01:24.2]} 13. O-O-O {[%clk 0:01:08.2]} 13... Rc8 {[%clk 0:01:17.5]} 14. Kc2
{[%clk 0:00:56.4]} 14... Nd5 {[%clk 0:01:13.3]} 15. Rd3 {[%clk 0:00:46.5]} 15...
Bxc3 {[%clk 0:01:01.2]} 16. bxc3 {[%clk 0:00:14.5]} 16... Nb4+ {[%clk 0:00:55]}
0-1

[Event "*** Titled Tuesday Blitz"]
[Site "Chess.com"]
[Date "2020.11.03"]
[Round "10"]
[White "infinitegiantkiller"]
[Black "AldokhinIvan"]
[Result "0-1"]
[WhiteElo "2466"]
[BlackElo "2607"]
[TimeControl "180+1"]
[EndTime "11:58:09 PST"]
[Termination "AldokhinIvan won by checkmate"]

1. d4 {[%clk 0:03:00.9]} 1... Nf6 {[%clk 0:02:58.9]} 2. c4 {[%clk 0:03:01.1]}
2... g6 {[%clk 0:02:59.3]} 3. Nc3 {[%clk 0:02:52.8]} 3... Bg7 {[%clk 0:02:59.6]}
4. e4 {[%clk 0:02:53]} 4... d6 {[%clk 0:03:00]} 5. Nge2 {[%clk 0:02:53.9]} 5...
O-O {[%clk 0:02:59.8]} 6. f3 {[%clk 0:02:54.8]} 6... Nc6 {[%clk 0:03:00]} 7. Be3
{[%clk 0:02:55.7]} 7... e5 {[%clk 0:02:58.3]} 8. Qd2 {[%clk 0:02:56.6]} 8...
exd4 {[%clk 0:02:43.3]} 9. Nxd4 {[%clk 0:02:57.5]} 9... Bd7 {[%clk 0:02:43.4]}
10. Be2 {[%clk 0:02:57.3]} 10... Nh5 {[%clk 0:02:42.1]} 11. O-O {[%clk
0:02:55.7]} 11... Re8 {[%clk 0:02:17.6]} 12. Rac1 {[%clk 0:02:48.4]} 12... Be5
{[%clk 0:02:09.3]} 13. f4 {[%clk 0:02:40.5]} 13... Bxd4 {[%clk 0:01:19.2]} 14.
Bxd4 {[%clk 0:02:39.3]} 14... Nxd4 {[%clk 0:01:18.2]} 15. Qxd4 {[%clk
0:02:40.2]} 15... Qf6 {[%clk 0:01:03.3]} 16. Qf2 {[%clk 0:02:36.7]} 16... Bc6
{[%clk 0:00:54.5]} 17. Bxh5 {[%clk 0:02:30]} 17... gxh5 {[%clk 0:00:54.6]} 18.
Rce1 {[%clk 0:02:18.8]} 18... Kh8 {[%clk 0:00:49.7]} 19. Nd5 {[%clk 0:02:10.5]}
19... Bxd5 {[%clk 0:00:47.4]} 20. exd5 {[%clk 0:02:11.4]} 20... b6 {[%clk
0:00:34.7]} 21. b3 {[%clk 0:02:06.8]} 21... Kg7 {[%clk 0:00:33.5]} 22. h3 {[%clk
0:02:03]} 22... h4 {[%clk 0:00:32.6]} 23. Rxe8 {[%clk 0:02:01.3]} 23... Rxe8
{[%clk 0:00:31.9]} 24. Re1 {[%clk 0:01:56.5]} 24... Rxe1+ {[%clk 0:00:31.4]} 25.
Qxe1 {[%clk 0:01:57.4]} 25... Qxf4 {[%clk 0:00:31.7]} 26. Qe7 {[%clk 0:01:56.5]}
26... Qd4+ {[%clk 0:00:24]} 27. Kh1 {[%clk 0:01:55.7]} 27... Qa1+ {[%clk
0:00:23.4]} 28. Kh2 {[%clk 0:01:53.5]} 28... Qe5+ {[%clk 0:00:23.9]} 29. Qxe5+
{[%clk 0:01:53.7]} 29... dxe5 {[%clk 0:00:24.4]} 30. g3 {[%clk 0:01:54.6]} 30...
f5 {[%clk 0:00:22]} 31. b4 {[%clk 0:01:53.1]} 31... Kf6 {[%clk 0:00:20.8]} 32.
gxh4 {[%clk 0:01:52.6]} 32... f4 {[%clk 0:00:18.6]} 33. Kg2 {[%clk 0:01:52.7]}
33... e4 {[%clk 0:00:19]} 34. Kf1 {[%clk 0:01:51.4]} 34... Ke5 {[%clk
0:00:19.4]} 35. a4 {[%clk 0:01:50]} 35... Kd4 {[%clk 0:00:18.8]} 36. a5 {[%clk
0:01:49.9]} 36... Kxc4 {[%clk 0:00:18.1]} 37. axb6 {[%clk 0:01:49.6]} 37... axb6
{[%clk 0:00:17.7]} 38. d6 {[%clk 0:01:50.5]} 38... cxd6 {[%clk 0:00:17.5]} 39.
h5 {[%clk 0:01:51.4]} 39... h6 {[%clk 0:00:17.2]} 40. b5 {[%clk 0:01:50.9]}
40... d5 {[%clk 0:00:17.4]} 41. h4 {[%clk 0:01:51.8]} 41... d4 {[%clk 0:00:18]}
42. Ke2 {[%clk 0:01:52.7]} 42... d3+ {[%clk 0:00:18.4]} 43. Kd2 {[%clk
0:01:53.6]} 43... e3+ {[%clk 0:00:18.5]} 44. Kc1 {[%clk 0:01:53.7]} 44... f3
{[%clk 0:00:19.4]} 45. Kb2 {[%clk 0:01:54.6]} 45... f2 {[%clk 0:00:19.2]} 46.
Ka2 {[%clk 0:01:55.5]} 46... f1=Q {[%clk 0:00:19.2]} 47. Ka3 {[%clk 0:01:56.4]}
47... Qa1# {[%clk 0:00:19.1]} 0-1

[Event "*** Titled Tuesday Blitz"]
[Site "Chess.com"]
[Date "2020.11.03"]
[Round "10"]
[White "MarcoRiehle"]
[Black "PIwan"]
[Result "1-0"]
[WhiteElo "2693"]
[BlackElo "2525"]
[TimeControl "180+1"]
[EndTime "11:58:14 PST"]
[Termination "MarcoRiehle won by resignation"]

1. e4 {[%clk 0:03:00.9]} 1... e6 {[%clk 0:03:00.4]} 2. c4 {[%clk 0:02:57.3]}
2... d5 {[%clk 0:03:01.3]} 3. cxd5 {[%clk 0:02:58.2]} 3... exd5 {[%clk
0:03:01.6]} 4. Qb3 {[%clk 0:02:58.7]} 4... Nf6 {[%clk 0:02:49.4]} 5. e5 {[%clk
0:02:37.2]} 5... Ne4 {[%clk 0:02:47.5]} 6. Nc3 {[%clk 0:02:35.7]} 6... Nc5
{[%clk 0:02:43.6]} 7. Qxd5 {[%clk 0:02:32.4]} 7... Nbd7 {[%clk 0:02:20.2]} 8. d4
{[%clk 0:02:30.5]} 8... Ne6 {[%clk 0:02:15.9]} 9. Be3 {[%clk 0:02:27.5]} 9...
Bb4 {[%clk 0:02:12.7]} 10. Bd3 {[%clk 0:02:23.9]} 10... O-O {[%clk 0:02:07]} 11.
Nf3 {[%clk 0:02:18.8]} 11... Ndc5 {[%clk 0:01:59.4]} 12. Bxh7+ {[%clk 0:02:11]}
12... Kxh7 {[%clk 0:01:55.5]} 13. Qxd8 {[%clk 0:02:11.1]} 13... Nd3+ {[%clk
0:01:16.2]} 14. Kd2 {[%clk 0:02:01.9]} 14... Rxd8 {[%clk 0:01:06.6]} 15. Kxd3
{[%clk 0:02:01.7]} 15... c5 {[%clk 0:01:07.1]} 16. Rad1 {[%clk 0:01:57.1]} 16...
cxd4 {[%clk 0:01:01.5]} 17. Nxd4 {[%clk 0:01:55.1]} 17... Bc5 {[%clk 0:00:41.1]}
18. Ne4 {[%clk 0:01:49.2]} 18... Bxd4 {[%clk 0:00:37.9]} 19. Bxd4 {[%clk
0:01:46.9]} 19... Rxd4+ {[%clk 0:00:38.8]} 20. Ke3 {[%clk 0:01:47.4]} 20... Rxd1
{[%clk 0:00:32.7]} 21. Rxd1 {[%clk 0:01:48.3]} 21... b6 {[%clk 0:00:30.9]} 22.
f4 {[%clk 0:01:48.2]} 22... Bb7 {[%clk 0:00:30.7]} 23. f5 {[%clk 0:01:43.2]}
23... Nc5 {[%clk 0:00:22.2]} 24. Nxc5 {[%clk 0:01:39.4]} 24... bxc5 {[%clk
0:00:23.1]} 25. Rd7 {[%clk 0:01:32.7]} 25... Bc8 {[%clk 0:00:21.1]} 26. Rxf7
{[%clk 0:01:32]} 26... Kg8 {[%clk 0:00:21.5]} 27. e6 {[%clk 0:01:32.4]} 27... g6
{[%clk 0:00:16]} 28. g4 {[%clk 0:01:30.2]} 28... Ba6 {[%clk 0:00:14.9]} 29. Kf4
{[%clk 0:01:27.3]} 29... c4 {[%clk 0:00:10.4]} 30. Kg5 {[%clk 0:01:26.5]} 30...
gxf5 {[%clk 0:00:10.6]} 31. gxf5 {[%clk 0:01:26.3]} 31... Rb8 {[%clk 0:00:10.4]}
32. Rxa7 {[%clk 0:01:25.6]} 1-0